bitfinex/quotes_BTCUSD_20251019
["timestamp","ask_amount","ask_price","bid_price","bid_amount"]
[1760863006608,0.35907542,106870.0,106850.0,4.996e-05]
[1760863008551,0.37375502,106870.0,106850.0,4.996e-05]
[1760863014320,0.37383808,106870.0,106850.0,4.996e-05]
[1760863014875,0.37383807,106870.0,106850.0,4.996e-05]
[1760863016566,0.56098224,106870.0,106850.0,4.996e-05]
[1760863016765,0.21935108,106870.0,106850.0,4.996e-05]
[1760863020272,0.03220691,106870.0,106850.0,4.996e-05]
[1760863020465,0.03220691,106870.0,106850.0,0.18722781]
[1760863020677,0.03220691,106870.0,106850.0,4.996e-05]
[1760863021346,0.0146796,106870.0,106850.0,0.34004996]
[1760863023131,0.0146796,106870.0,106850.0,4.996e-05]
[1760863025573,0.0146796,106870.0,106850.0,0.18722599]
[1760863025790,0.0146796,106870.0,106860.0,0.09492]
[1760863026425,5.0,106870.0,106860.0,0.09492]
[1760863027892,0.00163124,106880.0,106860.0,0.28208077]
[1760863028531,5.0,106900.0,106870.0,0.53649845]
[1760863028715,5.01915436,106900.0,106870.0,0.53649845]
[1760863028920,5.0,106890.0,106870.0,0.53649845]
[1760863029281,5.0,106900.0,106880.0,0.09488]
[1760863029481,0.01467672,106890.0,106880.0,0.09488]
[1760863033164,0.01467672,106890.0,106880.0,0.09554514]
[1760863033942,5.0,106900.0,106880.0,0.09554514]
[1760863038255,0.01467521,106900.0,106880.0,0.09554514]
[1760863040990,0.01467521,106900.0,106880.0,0.00066514]
[1760863041229,5.0,106890.0,106880.0,0.09484]
[1760863041633,5.0,106890.0,106870.0,0.03618228]
[1760863041870,5.0,106890.0,106880.0,0.09484]
[1760863042291,5.0,106890.0,106870.0,0.03618228]
[1760863042292,5.0,106890.0,106870.0,0.13102228]
[1760863042913,5.0,106900.0,106870.0,0.13102228]
[1760863044811,5.18709242,106900.0,106870.0,0.13102228]
[1760863045014,5.0,106890.0,106870.0,0.13102228]
[1760863046760,5.0,106900.0,106870.0,0.13102228]
[1760863049340,5.01467625,106900.0,106870.0,0.13102228]
[1760863049695,5.0,106890.0,106870.0,0.13102228]
[1760863053155,5.0,106890.0,106870.0,0.09484]
[1760863055628,0.18712574,106880.0,106870.0,0.09484]
[1760863055820,0.34,106880.0,106870.0,0.09484]
[1760863056295,0.34,106880.0,106860.0,0.0948]
[1760863058593,0.34,106880.0,106850.0,0.18353224]
[1760863058814,0.3546783,106880.0,106860.0,0.0948]
[1760863059014,0.54180477,106880.0,106860.0,0.0948]
[1760863060913,5.0,106870.0,106860.0,0.0948]
[1760863061122,5.0,106870.0,106850.0,4.996e-05]
[1760863061286,5.0,106870.0,106850.0,0.09484996]
[1760863062488,0.00163114,106870.0,106850.0,0.09484996]
[1760863068042,0.188778,106870.0,106850.0,0.09484996]
[1760863068750,0.00163114,106870.0,106850.0,0.09484996]
[1760863069691,0.18877532,106870.0,106850.0,0.09484996]
[1760863070335,0.00163114,106870.0,106850.0,0.09484996]
[1760863070742,0.01631054,106870.0,106850.0,0.09488996]
[1760863070921,0.20345402,106870.0,106850.0,0.09488996]
[1760863071131,0.01631054,106870.0,106850.0,0.09488996]
[1760863082968,5.0,106860.0,106850.0,0.09484996]
[1760863083174,5.52716077,106860.0,106850.0,8.996e-05]
[1760863083379,5.58173913,106860.0,106850.0,8.996e-05]
[1760863083581,5.62739485,106860.0,106850.0,8.996e-05]
[1760863083739,5.59798129,106860.0,106850.0,8.996e-05]
[1760863083963,5.57281649,106860.0,106850.0,8.996e-05]
[1760863084349,5.04565572,106860.0,106850.0,8.996e-05]
[1760863084535,5.0,106860.0,106850.0,8.996e-05]
[1760863085567,4.7988204,106860.0,106850.0,8.996e-05]
[1760863085768,5.0,106860.0,106850.0,8.996e-05]
[1760863085966,0.34163114,106870.0,106850.0,8.996e-05]
[1760863086188,0.35913407,106870.0,106850.0,8.996e-05]
[1760863087274,0.37381397,106870.0,106850.0,8.996e-05]
[1760863087675,0.56095902,106870.0,106850.0,8.996e-05]
[1760863088802,5.18716077,106860.0,106850.0,8.996e-05]
[1760863089020,5.0,106860.0,106850.0,8.996e-05]
[1760863089654,0.54345609,106870.0,106850.0,8.996e-05]
[1760863089972,5.0,106860.0,106850.0,8.996e-05]
[1760863104014,4.8201641,106860.0,106850.0,8.996e-05]
[1760863104236,5.0,106860.0,106850.0,8.996e-05]
[1760863109748,0.01468016,106860.0,106850.0,8.996e-05]
[1760863112180,0.1871449,106870.0,106850.0,8.996e-05]
[1760863112407,5.0,106860.0,106850.0,8.996e-05]
[1760863113762,4.8064589,106860.0,106850.0,8.996e-05]
[1760863113990,5.0,106860.0,106850.0,8.996e-05]
[1760863117674,5.18716077,106860.0,106850.0,8.996e-05]
[1760863117876,0.20469141,106860.0,106850.0,8.996e-05]
[1760863119285,0.01753064,106860.0,106850.0,8.996e-05]
[1760863120501,0.20469141,106860.0,106850.0,8.996e-05]
[1760863120656,0.01753064,106860.0,106850.0,8.996e-05]
[1760863126269,5.18716077,106860.0,106850.0,8.996e-05]
[1760863126472,0.20467801,106860.0,106850.0,8.996e-05]
[1760863126775,5.20467801,106860.0,106850.0,8.996e-05]
[1760863127926,5.54467801,106860.0,106850.0,8.996e-05]
[1760863131273,0.0004381,106850.0,106820.0,0.09468]
[1760863131474,0.0005314,106850.0,106820.0,0.09468]
[1760863132298,0.19706972,106850.0,106810.0,0.1473]
[1760863132459,5.0,106840.0,106820.0,0.13086228]
[1760863133763,5.0,106840.0,106820.0,0.13147609]
[1760863134883,5.0,106840.0,106820.0,0.13086228]
[1760863139107,0.02796953,106840.0,106820.0,0.13086228]
[1760863139466,5.0,106840.0,106820.0,0.13086228]
[1760863141879,5.0,106830.0,106810.0,0.24171088]
[1760863142060,5.0,106830.0,106820.0,0.09468]
[1760863142301,5.0,106830.0,106810.0,0.24198]
[1760863142507,5.0,106830.0,106820.0,4e-05]
[1760863144011,5.18721332,106830.0,106820.0,4e-05]
[1760863144301,0.18721332,106830.0,106820.0,4e-05]
[1760863145950,0.52721332,106830.0,106820.0,4e-05]
[1760863146353,5.52721332,106830.0,106820.0,4e-05]
[1760863146774,5.54468053,106830.0,106820.0,4e-05]
[1760863147895,5.54631237,106830.0,106820.0,4e-05]
[1760863149051,5.56099854,106830.0,106820.0,4e-05]
[1760863152106,5.58604984,106830.0,106820.0,4e-05]
[1760863153710,5.58980495,106830.0,106820.0,4e-05]
[1760863154988,5.58817311,106830.0,106820.0,4e-05]
[1760863155315,5.58980518,106830.0,106820.0,4e-05]
[1760863155517,5.58817311,106830.0,106820.0,4e-05]
[1760863155855,5.58980519,106830.0,106820.0,4e-05]
[1760863157147,5.18724838,106810.0,106800.0,0.0002]
[1760863157349,5.20471559,106810.0,106800.0,0.0002]
[1760863157587,5.20467093,106810.0,106800.0,0.0002]
[1760863157793,5.22474765,106810.0,106800.0,0.0002]
[1760863158408,5.22474765,106810.0,106800.0,0.00024995]
[1760863159837,5.2100585,106810.0,106800.0,0.00024995]
[1760863162766,5.56474838,106810.0,106800.0,0.00024995]
[1760863165159,5.5500585,106810.0,106800.0,0.00024995]
[1760863165362,5.52726591,106800.0,106790.0,0.0002]
[1760863165584,5.52726591,106800.0,106790.0,0.00029355]
[1760863165585,5.54468846,106800.0,106790.0,0.00029355]
[1760863165993,5.54844453,106800.0,106790.0,0.00029355]
[1760863166196,5.54844453,106800.0,106780.0,0.0002]
[1760863166197,0.18728345,106790.0,106780.0,0.0002]
[1760863166398,5.204706,106790.0,106780.0,0.00069674]
[1760863166601,5.18731853,106770.0,106760.0,0.0002]
[1760863166824,5.20474108,106770.0,106760.0,0.00024968]
[1760863166996,5.54474108,106770.0,106760.0,0.00024968]
[1760863167204,5.54849818,106770.0,106760.0,0.00024968]
[1760863168713,5.54849818,106770.0,106760.0,0.00028968]
[1760863169091,5.55013105,106770.0,106760.0,0.00028968]
[1760863183704,5.20637395,106770.0,106760.0,0.00028968]
[1760863183901,5.55013065,106770.0,106760.0,0.00028968]
[1760863184298,5.54849778,106770.0,106760.0,0.00028968]
[1760863186613,5.55013061,106770.0,106760.0,0.00028968]
[1760863189432,5.56482582,106770.0,106760.0,0.00028968]
[1760863189811,5.56482582,106770.0,106760.0,1e-08]
[1760863190022,5.52735362,106750.0,106740.0,0.0002]
[1760863190232,5.54477617,106750.0,106740.0,0.00025]
[1760863190444,5.56982747,106750.0,106740.0,0.00025]
[1760863190813,5.56323406,106750.0,106740.0,0.00025]
[1760863191046,5.56486727,106750.0,106740.0,0.00025]
[1760863191291,5.56323406,106750.0,106740.0,0.00025]
[1760863191509,5.58674749,106750.0,106740.0,0.00025]
[1760863193264,5.58838064,106750.0,106740.0,0.00025]
[1760863194807,5.58839618,106750.0,106740.0,0.00025]
[1760863197355,5.58841181,106750.0,106740.0,0.00025]
[1760863199736,5.58841181,106750.0,106740.0,0.00029]
[1760863201026,5.40105819,106750.0,106740.0,0.00029]
[1760863201427,5.57371203,106750.0,106740.0,0.00029]
[1760863202081,5.22995392,106750.0,106740.0,0.00029]
[1760863202256,5.56832077,106750.0,106740.0,0.00029]
[1760863202457,5.38096715,106750.0,106740.0,0.00029]
[1760863202673,5.56832077,106750.0,106740.0,0.00029]
[1760863204647,5.58301822,106750.0,106740.0,0.00029]
[1760863205004,5.56832077,106750.0,106740.0,0.00029]
[1760863205410,5.56995381,106750.0,106740.0,0.00029]
[1760863207853,5.38260019,106750.0,106740.0,0.00029]
[1760863208059,5.39729777,106750.0,106740.0,0.00029]
[1760863208710,5.05729777,106750.0,106740.0,0.00029]
[1760863208946,0.03378434,106750.0,106740.0,0.00029]
[1760863209188,0.0321513,106750.0,106740.0,0.00029]
[1760863210480,0.03214793,106750.0,106740.0,0.00029]
[1760863211063,0.03214793,106750.0,106740.0,0.03818653]
[1760863211278,0.01469758,106750.0,106740.0,0.03818653]
[1760863211893,5.0,106760.0,106740.0,0.03818653]
[1760863212096,5.01744778,106760.0,106740.0,0.03818653]
[1760863212305,5.0,106750.0,106740.0,0.03818653]
[1760863212515,5.0,106760.0,106740.0,0.03818653]
[1760863212723,5.01744504,106760.0,106740.0,0.03818653]
[1760863212925,0.01907779,106760.0,106740.0,0.03818653]
[1760863213260,0.01907779,106760.0,106740.0,0.22555743]
[1760863213472,0.00163275,106760.0,106750.0,0.03618228]
[1760863213928,0.00163275,106760.0,106750.0,0.2235359]
[1760863214142,0.00163275,106760.0,106750.0,0.31794678]
[1760863215421,5.0,106790.0,106770.0,0.03618228]
[1760863215651,0.0016325,106780.0,106770.0,0.03618228]
[1760863216747,0.0016325,106780.0,106770.0,0.03622228]
[1760863219481,5.0,106790.0,106770.0,0.03622228]
[1760863219901,5.0,106790.0,106770.0,0.22354041]
[1760863220521,5.0,106790.0,106780.0,0.0946]
[1760863222333,5.0,106790.0,106770.0,0.03622228]
[1760863222544,5.0,106790.0,106780.0,0.0946]
[1760863222785,5.0016324,106790.0,106780.0,0.0946]
[1760863223218,5.0,106780.0,106770.0,0.13082228]
[1760863223632,5.0,106780.0,106770.0,0.03622228]
[1760863223767,5.0,106780.0,106770.0,0.09464]
[1760863224799,5.18730099,106780.0,106770.0,4e-05]
[1760863225003,0.18730099,106780.0,106770.0,4e-05]
[1760863225630,5.18730099,106780.0,106770.0,4e-05]
[1760863226800,5.54468386,106780.0,106770.0,4e-05]
[1760863229100,5.57285561,106780.0,106770.0,4e-05]
[1760863229294,5.58754939,106780.0,106770.0,4e-05]
[1760863230826,5.4002484,106780.0,106770.0,4e-05]
[1760863231200,5.0,106760.0,106740.0,0.00024]
[1760863231384,5.0,106750.0,106740.0,0.00029]
[1760863231584,5.0,106760.0,106740.0,0.00029]
[1760863231785,5.0,106770.0,106740.0,0.00965855]
[1760863232059,5.0,106760.0,106740.0,0.00965855]
[1760863232236,5.0,106760.0,106740.0,0.00029]
[1760863232592,5.0,106750.0,106740.0,0.00029]
[1760863232808,5.0,106760.0,106740.0,0.00029]
[1760863233112,5.0,106750.0,106740.0,0.00029]
[1760863233289,5.0,106760.0,106740.0,0.00029]
[1760863233491,5.0,106750.0,106740.0,0.00029]
[1760863233693,5.0,106760.0,106740.0,0.00029]
[1760863233913,5.0,106750.0,106740.0,0.00029]
[1760863234152,5.0,106760.0,106740.0,0.00029]
[1760863234356,5.0,106750.0,106740.0,0.00029]
[1760863234558,5.0,106760.0,106740.0,0.00029]
[1760863234763,5.0,106750.0,106740.0,0.00029]
[1760863234963,5.0,106760.0,106740.0,0.00029]
[1760863235136,5.0,106750.0,106740.0,0.00029]
[1760863235555,5.0,106760.0,106740.0,0.00029]
[1760863235758,5.0,106750.0,106740.0,0.00029]
[1760863235958,5.0,106760.0,106740.0,0.00029]
[1760863236233,5.0,106750.0,106740.0,0.00029]
[1760863236672,5.0,106760.0,106740.0,0.00029]
[1760863237605,5.01742525,106760.0,106740.0,0.00029]
[1760863237804,5.0,106750.0,106740.0,0.00029]
[1760863238181,5.0,106760.0,106740.0,0.00029]
[1760863238386,5.0,106750.0,106740.0,0.00029]
[1760863238791,5.0,106760.0,106740.0,0.00029]
[1760863238996,5.0,106750.0,106740.0,0.00029]
[1760863239351,5.0,106760.0,106740.0,0.00029]
[1760863239550,5.01742918,106760.0,106740.0,0.00029]
[1760863239758,5.0,106750.0,106740.0,0.00029]
[1760863239957,5.0,106760.0,106740.0,0.00029]
[1760863240173,5.0,106750.0,106740.0,0.00029]
[1760863240336,5.0,106760.0,106740.0,0.00029]
[1760863240533,5.0,106750.0,106740.0,0.00029]
[1760863240738,5.0,106760.0,106740.0,0.00029]
[1760863241119,5.0,106750.0,106740.0,0.00029]
[1760863241655,5.0,106760.0,106740.0,0.00029]
[1760863241866,5.0,106750.0,106740.0,0.00029]
[1760863242079,5.0,106760.0,106740.0,0.00029]
[1760863242292,5.0,106750.0,106740.0,0.00029]
[1760863242506,5.0,106760.0,106740.0,0.00029]
[1760863242703,5.08817731,106760.0,106740.0,0.00029]
[1760863242853,5.0,106750.0,106740.0,0.00029]
[1760863247843,0.07075039,106760.0,106740.0,0.00029]
[1760863248074,0.01742936,106760.0,106740.0,0.00029]
[1760863251216,0.01742936,106760.0,106750.0,0.03618228]
[1760863251418,5.0,106760.0,106750.0,0.03618228]
[1760863253065,5.0,106760.0,106750.0,0.13059316]
[1760863253229,0.02297063,106770.0,106750.0,0.13059316]
[1760863253433,0.04044293,106770.0,106750.0,0.13059316]
[1760863253809,0.03881021,106770.0,106750.0,0.13059316]
[1760863255066,0.03881579,106770.0,106750.0,0.03618228]
[1760863255476,0.12323689,106770.0,106740.0,0.00029]
[1760863255713,0.12323689,106770.0,106750.0,0.03618228]
[1760863256021,0.03216825,106770.0,106750.0,0.03618228]
[1760863256712,0.01747788,106770.0,106750.0,0.03618228]
[1760863257083,0.35747788,106770.0,106750.0,0.03618228]
[1760863257793,0.03905685,106770.0,106750.0,0.03618228]
[1760863258054,0.37905685,106770.0,106750.0,0.03618228]
[1760863258440,0.18858291,106770.0,106750.0,0.03618228]
[1760863258904,5.0,106770.0,106750.0,0.03618228]
[1760863259764,5.01469061,106770.0,106750.0,0.03618228]
[1760863259974,5.0,106760.0,106740.0,0.09470088]
[1760863260176,5.0,106760.0,106740.0,0.18926088]
[1760863260383,5.0,106760.0,106740.0,0.09485]
[1760863260617,5.00163263,106760.0,106740.0,0.09485]
[1760863260799,0.00163263,106760.0,106740.0,0.09485]
[1760863261877,0.00163263,106760.0,106740.0,0.00029]
[1760863262522,5.34,106750.0,106740.0,0.00029]
[1760863262742,0.34,106750.0,106740.0,0.00029]
[1760863266849,5.34,106750.0,106730.0,0.0002]
[1760863267113,5.0,106740.0,106730.0,0.0002]
[1760863268266,5.0,106730.0,106720.0,0.0002]
[1760863268463,5.0,106730.0,106720.0,0.00034065]
[1760863270096,5.07005948,106730.0,106720.0,0.00034065]
[1760863270308,5.07169252,106730.0,106720.0,0.00034065]
[1760863270736,5.41169252,106730.0,106720.0,0.00034065]
[1760863271290,5.41005948,106730.0,106720.0,0.00034065]
[1760863271935,0.34,106730.0,106720.0,0.00034065]
[1760863272965,0.34,106730.0,106720.0,0.03652293]
[1760863273310,0.35469742,106730.0,106720.0,0.03652293]
[1760863273516,0.35469742,106730.0,106720.0,0.22392922]
[1760863273723,0.35469742,106730.0,106720.0,0.03652293]
[1760863273965,0.01469742,106730.0,106720.0,0.22392922]
[1760863274165,0.25402791,106770.0,106720.0,0.23329953]
[1760863274366,0.34,106730.0,106720.0,0.32771041]
[1760863274648,0.3416329,106730.0,106720.0,0.32771041]
[1760863274944,0.34163289,106730.0,106720.0,0.32771041]
[1760863275273,0.34,106760.0,106730.0,0.03618228]
[1760863275583,0.34,106740.0,106730.0,0.31813101]
[1760863275994,0.34,106740.0,106730.0,0.13074228]
[1760863276392,0.00163285,106750.0,106730.0,0.13074228]
[1760863276600,0.00163285,106750.0,106730.0,0.31813062]
[1760863276796,0.03849403,106770.0,106730.0,0.42191093]
[1760863276994,0.2155174,106780.0,106730.0,0.42191093]
[1760863276995,5.0,106760.0,106730.0,0.42191093]
[1760863277225,5.0,106770.0,106740.0,0.29115044]
[1760863277419,0.34,106760.0,106740.0,0.29115044]
[1760863277873,0.34,106760.0,106750.0,0.13074228]
[1760863278463,0.03725778,106770.0,106750.0,0.13158765]
[1760863278864,0.34,106760.0,106750.0,0.13158765]
[1760863279392,0.34,106760.0,106740.0,0.09456]
[1760863280818,5.19672776,106750.0,106720.0,0.03652293]
[1760863281026,0.52735362,106760.0,106720.0,0.00034065]
[1760863281027,0.34,106740.0,106720.0,0.00034065]
[1760863281242,0.34,106740.0,106720.0,0.03652293]
[1760863281823,0.34,106740.0,106720.0,0.00034065]
[1760863282045,0.34,106740.0,106720.0,0.03652293]
[1760863283600,0.34,106740.0,106720.0,0.31833471]
[1760863283799,5.0,106740.0,106720.0,0.32770502]
[1760863284002,0.34,106740.0,106730.0,0.13074228]
[1760863284386,0.34,106740.0,106730.0,0.31813101]
[1760863284761,0.34,106740.0,106730.0,0.13074228]
[1760863286972,0.34,106740.0,106730.0,0.09456]
[1760863287697,0.34,106740.0,106730.0,0.13074228]
[1760863290003,0.34,106740.0,106730.0,0.31813101]
[1760863290416,0.34,106740.0,106730.0,0.28194873]
[1760863290590,0.34,106740.0,106730.0,0.31813101]
[1760863292084,0.01469634,106750.0,106740.0,0.03618228]
[1760863292345,0.34,106750.0,106740.0,0.22355346]
[1760863292569,0.03892717,106770.0,106740.0,0.23292201]
[1760863292783,5.0,106760.0,106750.0,0.09456]
[1760863292998,5.00936504,106780.0,106750.0,0.09456]
[1760863293200,5.34,106760.0,106750.0,0.09456]
[1760863293403,0.34,106760.0,106750.0,0.09456]
[1760863295020,5.34,106760.0,106750.0,0.09456]
[1760863295586,5.35632668,106760.0,106750.0,0.09456]
[1760863296976,5.35469386,106760.0,106750.0,0.09456]
[1760863298426,5.34,106760.0,106750.0,0.09456]
[1760863299752,5.34,106760.0,106740.0,0.03618228]
[1760863299975,5.0,106750.0,106740.0,0.13074228]
[1760863300366,5.34,106750.0,106740.0,0.13074228]
[1760863300569,0.34,106740.0,106730.0,0.13059316]
[1760863300777,0.34,106740.0,106730.0,0.13074228]
[1760863301213,5.34,106740.0,106730.0,0.13074228]
[1760863307025,5.34,106740.0,106720.0,0.00034065]
[1760863307178,5.0,106730.0,106720.0,0.09490065]
[1760863317525,5.0,106730.0,106720.0,0.09583744]
[1760863317942,5.0,106730.0,106720.0,0.09490065]
[1760863322022,5.34,106730.0,106720.0,0.09490065]
[1760863324898,5.34,106730.0,106720.0,0.00034065]
[1760863327228,5.14326255,106730.0,106720.0,0.00034065]
[1760863330782,5.33065128,106730.0,106720.0,0.00034065]
[1760863331596,5.14326255,106730.0,106720.0,0.00034065]
[1760863345152,5.14306062,106730.0,106720.0,0.00034065]
[1760863354134,5.17124309,106730.0,106720.0,0.00034065]
[1760863354967,5.35863182,106730.0,106720.0,0.00034065]
[1760863355505,5.17830099,106730.0,106720.0,0.00034065]
[1760863356756,5.19579109,106730.0,106720.0,0.00034065]
[1760863356958,5.22323617,106730.0,106720.0,0.00034065]
[1760863357174,5.22040818,106730.0,106720.0,0.00034065]
[1760863358266,5.02421418,106730.0,106720.0,0.00034065]
[1760863358682,4.85560512,106730.0,106720.0,0.00034065]
[1760863359311,4.83098803,106730.0,106720.0,0.00034065]
[1760863360619,4.83098803,106730.0,106720.0,0.00829463]
[1760863361038,4.6435993,106730.0,106720.0,0.00829463]
[1760863361464,4.83098803,106730.0,106720.0,0.00829463]
[1760863362387,4.83097498,106730.0,106720.0,0.00829463]
[1760863362813,4.64521966,106730.0,106720.0,0.00829463]
[1760863363027,4.83260839,106730.0,106720.0,0.00829463]
[1760863363857,4.83097498,106730.0,106720.0,0.00829463]
[1760863366856,4.83260837,106730.0,106720.0,0.00829463]
[1760863368186,4.64521964,106730.0,106720.0,0.00829463]
[1760863368928,4.83260837,106730.0,106720.0,0.00829463]
[1760863373559,4.64521964,106730.0,106720.0,0.00829463]
[1760863374908,4.65991885,106730.0,106720.0,0.00829463]
[1760863375121,4.84730758,106730.0,106720.0,0.00829463]
[1760863383841,4.83260837,106730.0,106720.0,0.00829463]
[1760863384940,4.85722546,106730.0,106720.0,0.00829463]
[1760863385416,4.88440909,106730.0,106720.0,0.00829463]
[1760863386329,4.9814757,106730.0,106720.0,0.00829463]
[1760863386551,5.00349016,106730.0,106720.0,0.00829463]
[1760863386972,5.01819204,106730.0,106720.0,0.00829463]
[1760863387374,5.12534869,106730.0,106720.0,0.00829463]
[1760863388036,5.1269824,106730.0,106720.0,0.00829463]
[1760863388450,4.78535058,106710.0,106700.0,4e-05]
[1760863388660,4.80282763,106710.0,106700.0,8.995e-05]
[1760863389079,4.84572391,106710.0,106700.0,8.995e-05]
[1760863389308,4.84735763,106710.0,106700.0,8.995e-05]
[1760863390385,4.87197472,106710.0,106700.0,8.995e-05]
[1760863391650,4.89915835,106710.0,106700.0,8.995e-05]
[1760863392262,4.87197472,106710.0,106700.0,8.995e-05]
[1760863392683,4.84735763,106710.0,106700.0,8.995e-05]
[1760863393935,4.84572391,106710.0,106700.0,8.995e-05]
[1760863394162,4.84572391,106710.0,106700.0,0.00081081]
[1760863395647,4.65830006,106710.0,106700.0,0.00081081]
[1760863395853,4.84572391,106710.0,106700.0,0.00081081]
[1760863396065,4.84735772,106710.0,106700.0,0.00081081]
[1760863398797,4.50735772,106710.0,106700.0,0.00081081]
[1760863399218,4.84735772,106710.0,106700.0,0.00081081]
[1760863399429,4.65993387,106710.0,106700.0,0.00081081]
[1760863399846,4.64523049,106710.0,106700.0,0.00081081]
[1760863400065,4.83265434,106710.0,106700.0,0.00081081]
[1760863402189,4.83102053,106710.0,106700.0,0.00081081]
[1760863405166,4.8326542,106710.0,106700.0,0.00081081]
[1760863408171,4.85727129,106710.0,106700.0,0.00081081]
[1760863408381,4.88445492,106710.0,106700.0,0.00081081]
[1760863409675,4.89915993,106710.0,106700.0,0.00081081]
[1760863409884,4.8719763,106710.0,106700.0,0.00081081]
[1760863410537,4.84735921,106710.0,106700.0,0.00081081]
[1760863413853,4.84734247,106710.0,106700.0,0.00081081]
[1760863414041,4.50734247,106710.0,106700.0,0.00081081]
[1760863414287,4.84734247,106710.0,106700.0,0.00081081]
[1760863414717,4.65991862,106710.0,106700.0,0.00081081]
[1760863414926,4.64357994,106710.0,106700.0,0.00081081]
[1760863415814,4.25792673,106710.0,106700.0,0.00081081]
[1760863416056,4.28611354,106720.0,106700.0,0.00081081]
[1760863416286,4.25792673,106710.0,106700.0,8.995e-05]
[1760863416508,4.59792673,106710.0,106700.0,8.995e-05]
[1760863416729,4.25792673,106730.0,106700.0,0.18815314]
[1760863416943,4.30357553,106730.0,106700.0,0.18753137]
[1760863417199,0.34,106710.0,106700.0,0.18753137]
[1760863417406,4.59792673,106710.0,106700.0,0.18753137]
[1760863418059,4.25792673,106710.0,106700.0,0.31812453]
[1760863418280,5.0,106720.0,106710.0,0.18741972]
[1760863418498,5.0,106730.0,106710.0,0.18741972]
[1760863418714,5.35469875,106720.0,106710.0,0.18741972]
[1760863418929,5.01469875,106720.0,106710.0,0.18741972]
[1760863419405,5.0,106710.0,106700.0,0.4220566]
[1760863425958,0.01633198,106720.0,106710.0,0.22360613]
[1760863426163,0.01633198,106720.0,106710.0,0.31801701]
[1760863427004,0.00163323,106720.0,106710.0,0.31801701]
[1760863427499,0.36817836,106750.0,106730.0,0.18738873]
[1760863427500,5.0,106740.0,106730.0,0.18738873]
[1760863427684,5.00163311,106740.0,106730.0,0.28190873]
[1760863427883,5.00163311,106740.0,106730.0,0.14238686]
[1760863429799,5.00163311,106740.0,106730.0,0.32977559]
[1760863429952,5.34163311,106740.0,106730.0,0.32977559]
[1760863430328,5.34163311,106740.0,106730.0,0.14238686]
[1760863430525,5.35632923,106740.0,106730.0,0.14238686]
[1760863434288,5.34163311,106740.0,106730.0,0.14238686]
[1760863438316,5.34163311,106740.0,106730.0,0.42418647]
[1760863438533,5.35632956,106740.0,106730.0,0.42418647]
[1760863438744,5.35632956,106740.0,106730.0,0.46036875]
[1760863441761,5.35632956,106740.0,106730.0,0.27298002]
[1760863441983,5.35632956,106740.0,106730.0,0.46036875]
[1760863442195,5.35632956,106740.0,106730.0,0.27298002]
[1760863443089,5.35632956,106740.0,106730.0,0.46036875]
[1760863443766,5.35632956,106740.0,106730.0,0.27298002]
[1760863444277,5.35632956,106740.0,106730.0,0.46036875]
[1760863444477,5.37377785,106740.0,106730.0,0.46036875]
[1760863444680,5.37377785,106740.0,106730.0,0.27298002]
[1760863444886,5.37214474,106740.0,106730.0,0.27298002]
[1760863445108,5.35744829,106740.0,106730.0,0.27298002]
[1760863447557,5.35744829,106740.0,106730.0,0.17846002]
[1760863447760,5.35908141,106740.0,106730.0,0.27294002]
[1760863448621,5.35908141,106740.0,106730.0,0.04786686]
[1760863448817,5.35908141,106740.0,106730.0,0.09448]
[1760863449020,5.35744829,106740.0,106730.0,0.09448]
[1760863450086,5.0,106730.0,106700.0,0.29130986]
[1760863450298,5.34,106720.0,106710.0,0.09441088]
[1760863450508,5.35744829,106720.0,106710.0,0.22507316]
[1760863450716,5.35744829,106720.0,106710.0,0.41249701]
[1760863453718,5.37214683,106720.0,106710.0,0.41249701]
[1760863453923,5.03214683,106720.0,106710.0,0.41249701]
[1760863454555,5.03214683,106720.0,106710.0,0.47249968]
[1760863455726,5.01469854,106720.0,106710.0,0.47249968]
[1760863457499,0.01469854,106720.0,106710.0,0.47249968]
[1760863458365,5.0,106740.0,106720.0,0.03618228]
[1760863458577,5.34,106730.0,106720.0,0.31799945]
[1760863458783,5.35747937,106730.0,106720.0,0.46995917]
[1760863459316,5.34,106730.0,106720.0,0.46995917]
[1760863461705,5.34163318,106730.0,106720.0,0.46995917]
[1760863462112,5.34,106730.0,106720.0,0.46995917]
[1760863462571,5.0,106740.0,106730.0,0.18738873]
[1760863462736,5.35469697,106740.0,106730.0,0.33336331]
[1760863463266,5.35469697,106740.0,106730.0,0.14597458]
[1760863463674,5.37217363,106740.0,106730.0,0.14597458]
[1760863463878,5.37217363,106740.0,106730.0,0.14681204]
[1760863464096,5.37217371,106740.0,106730.0,0.14597458]
[1760863464871,5.37217371,106740.0,106730.0,0.33336331]
[1760863465474,5.35469697,106740.0,106730.0,0.33336331]
[1760863466419,5.3563301,106740.0,106730.0,0.33336331]
[1760863468436,5.3563301,106740.0,106730.0,0.14597458]
[1760863469234,5.3563301,106740.0,106730.0,0.33336331]
[1760863469443,5.35469697,106740.0,106730.0,0.33336331]
[1760863469819,5.35469697,106740.0,106730.0,0.36954559]
[1760863473644,5.35469697,106740.0,106730.0,0.18215686]
[1760863473767,5.34,106740.0,106730.0,0.18215686]
[1760863476747,5.34163311,106740.0,106730.0,0.18215686]
[1760863476919,5.35632957,106740.0,106730.0,0.18215686]
[1760863478122,5.35632957,106740.0,106730.0,0.0515637]
[1760863478329,0.34,106730.0,106720.0,0.03618228]
[1760863478555,5.34,106730.0,106720.0,0.22503316]
[1760863480247,5.34,106730.0,106720.0,0.09444]
[1760863483014,5.35469815,106730.0,106720.0,0.09444]
[1760863486298,5.35469815,106730.0,106700.0,0.03627223]
[1760863486501,5.34,106720.0,106710.0,0.09444]
[1760863487858,5.0,106710.0,106700.0,0.26316347]
[1760863488230,5.0,106710.0,106700.0,0.26388433]
[1760863488902,5.34,106710.0,106700.0,0.26388433]
[1760863489481,5.34,106710.0,106700.0,0.13329117]
[1760863489681,5.34,106710.0,106700.0,0.09525081]
[1760863489971,5.34163344,106710.0,106700.0,0.09525081]
[1760863491501,5.34163344,106710.0,106700.0,0.28338422]
[1760863491676,5.34163344,106710.0,106700.0,0.22584397]
[1760863491875,5.34,106710.0,106700.0,0.22584397]
[1760863492113,5.34,106710.0,106700.0,0.26717421]
[1760863496022,5.34163343,106710.0,106700.0,0.26717421]
[1760863500879,5.34163343,106710.0,106700.0,0.04214105]
[1760863501088,5.34163343,106710.0,106700.0,0.00081081]